Cogmind - Beta 13 X2 @@@ ROGUE MODE // 2024.02.10 @ 16:53:39 Player: Minty Result: Destroyed by S-27 Virus with Autogun Performance ------------- Evolutions (3) 1500 Regions Visited (5) 1000 Robots Destroyed (71) 355 Value Destroyed (2558) 2558 Prototype IDs (22) 440 Alien Tech Used (0) 0 Bonus (-68) -68 TOTAL SCORE: 5785 Bonus ------- Friendly Fire -68 Cogmind --------- Core Integrity 0/700 Matter 275/300 Energy 74/100 System Corruption 7% Temperature Cool (0) Movement Hovering (240) Ox2 Location -7/Storage Parts ------- > --- POWER (2) -------- Backup Power I > --- PROPULSION (3) --- Backup Propulsion I > --- UTILITY (4) ------ Medium Storage Unit Gravity Neutralizer Improved Terrain Scan Processor Weapon Cycler > --- WEAPON (4) ------- Backup Laser I Improved Datajack > --- INVENTORY (10) --- Backup Power I Improved Heat Sink Gauss Cannon Remote Datajack Thunder Hammer Katana Katana Spear Peak State ------------ > --- POWER ------------ Enhanced Fission Core > --- PROPULSION ------- Heavy Siege Treads > --- UTILITY ---------- Medium Storage Unit Improved Sensor Array Improved Targeting Computer Weapon Cycler > --- WEAPON ----------- Force Rifle Cooled Plasma Cannon Neutron Cannon Thunder Hammer > --- INVENTORY -------- Improved Heat Sink Improved Terrain Scan Processor Improved Datajack Remote Datajack Katana Katana Katana [Rating: 59] Favorites ----------- Power Makeshift Power Source Engine Makeshift Power Source Power Core Light Nuclear Core Propulsion Compact Wheel Treads Armored Treads Leg Aluminum Leg Wheel Compact Wheel Hover Unit Hover Unit Utility Improved Targeting Computer Device Improved Heat Sink Storage Medium Storage Unit Processor Improved Targeting Computer Hackware Hacking Suite Protection Scrap Shield Weapon Katana Energy Gun Riot Gun Energy Cannon Improved EM Pulse Cannon Ballistic Gun Assault Rifle Ballistic Cannon Gauss Cannon Special Weapon Mining Laser Impact Weapon Thunder Hammer Slashing Weapon Katana Special Melee Weapon Improved Datajack Build | -11 -10 -10 -8 -7 -7 ------- Run | Yrd Mat Sub Mat Fac Sto Slots Evolved 6 | . . . 4 2 . Power 1 | . . . 1 . . Propulsion 1 | . . . 1 . . Utility 2 | . . . 1 1 . Weapon 2 | . . . 1 1 . Parts Attached 106 | . 5 34 26 38 3 Power 16 | . 1 2 4 9 . Engine 9 | . 1 2 3 3 . Core 7 | . . . 1 6 . Reactor . | . . . . . . Propulsion 17 | . 2 3 5 7 . Treads 6 | . . . 2 4 . Leg 7 | . . 1 3 3 . Wheel 2 | . . 2 . . . Hover 2 | . 2 . . . . Flight . | . . . . . . Utility 23 | . 1 4 9 7 2 Device 11 | . . 1 5 4 1 Storage 1 | . . . 1 . . Processor 4 | . . . 3 . 1 Hackware 2 | . 1 . . 1 . Protection 5 | . . 3 . 2 . Artifact . | . . . . . . Weapon 50 | . 1 25 8 15 1 Energy Gun 20 | . . 15 1 4 . Energy Cannon 4 | . . . . 4 . Ballistic Gun 6 | . . 3 1 2 . Ballistic Cannon 2 | . . . . 2 . Launcher . | . . . . . . Special Weapon 10 | . 1 7 2 . . Impact Weapon 1 | . . . . 1 . Slashing Weapon 5 | . . . 4 1 . Piercing Weapon . | . . . . . . Special Melee Weapon 2 | . . . . 1 1 Unidentified Prototypes 6 | . . . . 6 . Parts Lost 53 | . . 8 17 27 1 Power 11 | . . 2 2 7 . Propulsion 14 | . . 1 5 7 1 Utility 9 | . . 3 3 3 . Weapon 19 | . . 2 7 10 . Highest Loss Streak 10 | . . 4 9 10 1 To Critical Strikes 2 | . . . 1 1 . Average Slot Usage (%) 75 | . 99 74 75 71 37 Engine 8 | . 14 12 9 . 2 Core 2 | . . . 3 7 . Treads 2 | . . . 6 4 4 Leg 5 | . 14 2 12 3 . Wheel 8 | . . 17 . . . Hover 1 | . 13 1 . . 3 Device 5 | . . . 12 9 8 Storage 3 | . 14 1 . 7 7 Processor 3 | . . . 8 6 2 Hackware 1 | . 13 1 . . . Protection 5 | . . 10 . 1 . Energy Gun 9 | . . 18 3 . 2 Energy Cannon 2 | . . . . 6 . Ballistic Gun 5 | . 27 4 6 2 . Slashing Weapon 4 | . . . 11 9 . Naked Turns . | . . . . . . Heaviest Build 51 | 12 12 30 37 51 14 Greatest Support 90 | 20 20 55 65 90 20 Greatest Overweight (x) 11 | . . 4 3 11 . Average Overweight (x) . | . . . . 1 . Largest Inventory Capacity 10 | . 8 8 10 10 10 Average Capacity 7 | . 8 5 5 10 10 Most Carried 10 | . 8 8 5 10 10 Average Carried 5 | . 7 4 2 7 9 Final Capacity 10 | 8 8 5 10 10 10 Final Carried 10 | 6 8 4 2 10 8 Class Distribution -------------------- 42% | Mutant 19% | Derelict-Mutant 18% | Gunner 14% | Scavenger-Mutant 5% | Subdweller-Mutant Dominant Class ---------------- Scavenger-Mutant | -10/Materials Mutant | -10/Subcaves Scavenger-Mutant | -8/Materials Mutant | -7/Factory Mutant | -7/Storage Resources | -11 -10 -10 -8 -7 -7 ----------- Run | Yrd Mat Sub Mat Fac Sto Matter Collected 1793 | 188 147 506 324 628 . Remotely . | . . . . . . Salvage Created 2884 | . 260 663 601 1360 . Parts 163 | . 24 39 40 60 . Haulers Intercepted 2 | . 1 . . 1 . Recyclers Shooed . | . . . . . . Parts Field Recycled . | . . . . . . Retrieved Matter . | . . . . . . Parts Self-Destructed 15 | . . 15 . . . Prevented . | . . . . . . Kills | -11 -10 -10 -8 -7 -7 ------- Run | Yrd Mat Sub Mat Fac Sto Combat Hostiles Destroyed 52 | . 5 13 10 24 . Melee 7 | . . . 6 1 . Guns 23 | . 5 11 4 3 . Cannons 16 | . . . . 16 . AOE 1 | . . . . 1 . Classes Destroyed 17 | . 7 4 2 4 . Worker 7 | . 1 . 2 4 . Builder 3 | . . . . 3 . Tunneler 2 | . 1 . . 1 . Hauler 2 | . 1 . . 1 . Recycler 1 | . . . 1 . . Operator 2 | . 1 . 1 . . Watcher 2 | . 1 . 1 . . Swarmer 3 | . 3 . . . . Grunt 22 | . 2 2 8 10 . Sentry 3 | . . 1 1 1 . Specialist 2 | . . . . 2 . Hunter 5 | . . . . 5 . Programmer 4 | . . . . 4 . Heavy 3 | . . . 1 2 . Artisan 1 | . . 1 . . . Cobbler 1 | . . 1 . . . Subdweller 10 | . . 10 . . . Best Kill Streak 7 | . 4 3 3 7 . Combat Bots Only 6 | . 3 3 2 6 . Max Kills in Single Turn 2 | . 2 1 1 2 . Gunslinging . | . . . . . . Exploded 1 | . . . . 1 . Melee 1 | . . . 1 1 . Uniques/NPCs Destroyed . | . . . . . . Combat | -11 -10 -10 -8 -7 -7 -------- Run | Yrd Mat Sub Mat Fac Sto Hostile Shots Fired 767 | . 32 100 163 455 17 Missed 204 | . 10 30 36 124 4 Damage Taken 9250 | . 197 1435 2326 5086 206 Core 1360 | . 21 188 447 576 128 Absorbed by Shields . | . . . . . . Core Remaining (%) 44 | 100 . 16 18 . . Volleys Fired 238 | . 18 113 35 69 3 Largest 4 | . 2 2 3 4 1 Hottest 238 | . 100 150 225 238 30 Shots Fired 441 | . 34 192 74 138 3 Gun 318 | . 32 160 71 52 3 Cannon 86 | . . . . 86 . Launcher . | . . . . . . Special 37 | . 2 32 3 . . Kinetic 200 | . 32 62 48 58 . Thermal 167 | . 2 83 18 61 3 Explosive . | . . . . . . Electromagnetic 74 | . . 47 8 19 . Robot Hit Streak 17 | . 8 11 17 12 . Robot Miss Streak 6 | . 4 3 2 6 3 Penetration Max . | . . . . . . Secondary Targets 2 | . 2 . . . . Max Gunslinging Chain 1 | . 1 . . . . Shots Hit Robots 322 | . 19 111 59 133 . Core Hits 131 | . 12 35 30 54 . Critical Kills . | . . . . . . Critical Parts Destroyed 9 | . 1 . . 8 . Critical Strikes 13 | . 1 . 2 10 . Destroy 3 | . 1 . . 2 . Blast 2 | . . . . 2 . Smash 6 | . . . . 6 . Sever 2 | . . . 2 . . Melee Attacks 49 | . . . 19 30 . Impact 16 | . . . . 16 . Slashing 33 | . . . 19 14 . Piercing . | . . . . . . Sneak Attacks 12 | . . . 2 10 . Combat Hostiles 1 | . . . . 1 . Follow-up Attacks . | . . . . . . Damage Inflicted 7586 | . 304 1709 1182 4381 10 Guns 3454 | . 297 1637 702 808 10 Cannons 2114 | . . . . 2114 . Explosions 48 | . . . . 48 . Melee 1795 | . . . 386 1409 . Ramming 56 | . 7 . 47 2 . Kinetic 2342 | . 297 449 476 1120 . Thermal 2507 | . . 764 166 1567 10 Explosive . | . . . . . . Electromagnetic 886 | . . 496 107 283 . Impact 911 | . . . . 911 . Slashing 884 | . . . 386 498 . Piercing . | . . . . . . Highest Corruption 7 | . . . . 7 7 Average Corruption 3 | . . . . 3 7 Corruption Purged . | . . . . . . Corruption Blocked . | . . . . . . Effects 17 | . . . . 15 2 Message Errors 6 | . . . . 5 1 Matter Fused 2 | . . . . 2 . Heat Flow Errors 3 | . . . . 2 1 Energy Discharges 3 | . . . . 3 . Data Loss (major) 1 | . . . . 1 . Alerts 1 | . . . . 1 . Weapon Failures 1 | . . . . 1 . Overload Shots . | . . . . . . Overflow Damage 674 | . . 18 43 613 . Projectiles 37 | . . 18 . 19 . Explosions . | . . . . . . Melee 637 | . . . 43 594 . Knockbacks 17 | . . . . 17 . Impact 6 | . . . . 6 . Kinetic 10 | . . . . 10 . Secondary 1 | . . . . 1 . Self-Inflicted Damage . | . . . . . . Shots . | . . . . . . Rammed 23 | . . . 22 1 . Targets Rammed 29 | . 2 . 26 1 . Kicked 4 | . 2 . 2 . . Crushed 2 | . . . 2 . . Highest Temperature 421 | . 28 207 210 421 72 Average Temperature 116 | . 13 77 59 148 39 Received Heat Transfer 2280 | . 33 312 990 945 . Effects 4 | . . . . 4 . Shutdowns 1 | . . . . 1 . Energy Bleed 1 | . . . . 1 . Interference 1 | . . . . 1 . Matter Decay 1 | . . . . 1 . Siege Activations 2 | . . . . 2 . Total Turns 9 | . . . . 9 . Longest Duration 7 | . . . . 7 . Robots Corrupted 3 | . . 2 . 1 . Combat Hostiles 2 | . . 2 . . . Parts Fried 16 | . . 2 . 14 . Impact Corruptions 17 | . . . . 17 . Robots Melted . | . . . . . . Combat Hostiles . | . . . . . . Parts Melted 6 | . . 2 . 4 . Heat Transferred 2822 | . . 1072 469 1244 37 Parts Sabotaged . | . . . . . . Parts Stolen . | . . . . . . Parts Stripped . | . . . . . . Power Chain Reactions 1 | . . . . 1 . Missiles Intercepted . | . . . . . . Alert | -11 -10 -10 -8 -7 -7 ------- Run | Yrd Mat Sub Mat Fac Sto Peak Influence 315 | . 190 . 132 315 135 Initial 129 | . . . . 29 129 Average 84 | . 90 . 75 86 130 Maximum Alert Level 1 | . . . . 1 . Low Security (%) 87 | . 100 . 100 78 100 Level 1 12 | . . . . 21 . Level 2 . | . . . . . . Level 3 . | . . . . . . Level 4 . | . . . . . . Level 5 . | . . . . . . High Security . | . . . . . . Max Security . | . . . . . . Squads Dispatched 12 | . . . 3 9 . Investigation 4 | . . . 1 3 . Extermination 2 | . . . . 2 . Reinforcement 6 | . . . 2 4 . Assault . | . . . . . . Garrison . | . . . . . . Intercept . | . . . . . . Searches Triggered . | . . . . . . Construction Impeded . | . . . . . . Haulers Reinforced . | . . . . . . Active Scanning Responses . | . . . . . . Cargo Convoy Interrupts 1 | . . . . 1 . Stealth | -11 -10 -10 -8 -7 -7 --------- Run | Yrd Mat Sub Mat Fac Sto Distress Signals 1 | . . . . 1 . Communications Jammed . | . . . . . . Distress Signals . | . . . . . . Times Spotted 87 | . 9 14 18 41 5 Peak Tracking Total 13 | . 5 2 6 13 5 Tactical Retreats 4 | . 1 . . 3 . Traps | -11 -10 -10 -8 -7 -7 ------- Run | Yrd Mat Sub Mat Fac Sto Traps Triggered 1 | . . 1 . . . Indirectly . | . . . . . . Trap Hack Attempts 49 | . . . . 49 . Triggered . | . . . . . . Disarmed . | . . . . . . Reprogrammed 5 | . . . . 5 . Reused 1 | . . . . 1 . Traps Extracted . | . . . . . . Installed . | . . . . . . Triggered 1 | . . . . 1 . Machines | -11 -10 -10 -8 -7 -7 ---------- Run | Yrd Mat Sub Mat Fac Sto Machines Disabled 5 | . . 3 . 2 . Max in Single Turn 1 | . . 1 . 1 . Machines Repaired . | . . . . . . Machines Dismantled . | . . . . . . Machines Sabotaged . | . . . . . . Overloaded Fab Kills . | . . . . . . Hacking | -11 -10 -10 -8 -7 -7 --------- Run | Yrd Mat Sub Mat Fac Sto Machines Accessed 14 | . 2 2 3 5 2 Terminals 6 | . 2 . 2 1 1 Fabricators 1 | . . . . 1 . Repair Stations 3 | . . . . 2 1 Recycling Units 1 | . . . 1 . . Scanalyzers 1 | . . . . 1 . Garrison Access . | . . . . . . Total Hacks 50 | . 8 11 10 17 4 Successful 34 | . 5 11 7 9 2 Failed 16 | . 3 . 3 8 2 Catastrophic 3 | . . . . 3 . Database Lockouts . | . . . . . . Manual 16 | . 5 . 4 5 2 Terminals 21 | . 8 . 7 4 2 Fabricators 2 | . . . . 2 . Repair Stations 7 | . . . . 5 2 Recycling Units 3 | . . . 3 . . Scanalyzers 6 | . . . . 6 . Garrison Access . | . . . . . . Terminal Hacks 20 | . 4 11 4 . 1 Record 10 | . . 10 . . . Prototype ID Bank 3 | . 2 . 1 . . Alert Level 1 | . . . . . 1 Unreport Threat 1 | . 1 . . . . Locate Traps 2 | . . . 2 . . Maintenance Status 1 | . 1 . . . . Zone Layout 1 | . . . 1 . . Derelict Proto ID Bank 1 | . . 1 . . . Fabricator Hacks 1 | . . . . 1 . Build 1 | . . . . 1 . Repair Station Hacks 2 | . . . . 1 1 Refit 2 | . . . . 1 1 Recycling Unit Hacks 2 | . . . 2 . . Report Inventory 1 | . . . 1 . . Retrieve Components 1 | . . . 1 . . Scanalyzer 6 | . . . . 6 . Insert Component 3 | . . . . 3 . Analyze 3 | . . . . 3 . Garrison Access Hacks . | . . . . . . Unauthorized Hacks 3 | . 1 . 1 1 . Terminals 3 | . 1 . 1 1 . Botnet 3 | . 1 . 1 1 . Fabricators . | . . . . . . Repair Stations . | . . . . . . Recycling Units . | . . . . . . Scanalyzers . | . . . . . . Garrison Access . | . . . . . . Data Cores Recovered 1 | . 1 . . . . Used 1 | . 1 . . . . Hacking Detections 11 | . 2 . 3 4 2 Full Trace Events 6 | . 1 . 2 3 . Feedback Events . | . . . . . . Feedback Blocked . | . . . . . . Robot Schematics Acquired . | . . . . . . Robots Built . | . . . . . . Authchips . | . . . . . . Time . | . . . . . . Total Robot Build Rating . | . . . . . . Part Schematics Acquired 3 | . . . . 3 . Parts Built 2 | . . . . 2 . Authchips . | . . . . . . Time 58 | . . . . 58 . Total Part Build Rating 14 | . . . . 14 . Parts Repaired . | . . . . . . Time . | . . . . . . Parts Recycled . | . . . . . . Recycled Matter . | . . . . . . Retrieved Matter . | . . . . . . Retrieved Components 3 | . . . 3 . . Parts Scanalyzed 3 | . . . . 3 . Part Schematics Acquired 3 | . . . . 3 . Parts Damaged . | . . . . . . Bothacking | -11 -10 -10 -8 -7 -7 ------------ Run | Yrd Mat Sub Mat Fac Sto Used RIF Installer . | . . . . . . Robots Hacked . | . . . . . . Non-combat . | . . . . . . Combat . | . . . . . . Robot Hacks Applied . | . . . . . . Relay Couplers Released . | . . . . . . Fabnet Peak Effective % . | . . . . . . Robots Rewired . | . . . . . . Allies Hacked . | . . . . . . Hacks Repelled . | . . . . . . Allies | -11 -10 -10 -8 -7 -7 -------- Run | Yrd Mat Sub Mat Fac Sto Total Allies 1 | . . 1 . . . Largest Group 1 | . . 1 . . . Highest-Rated Group 37 | . . 37 . . . Highest-Rated Ally 37 | . . 37 . . . Total Orders . | . . . . . . Ally Attacks . | . . . . . . Total Damage . | . . . . . . Kills . | . . . . . . Allies Corrupted . | . . . . . . Allies Melted . | . . . . . . Intel | -11 -10 -10 -8 -7 -7 ------- Run | Yrd Mat Sub Mat Fac Sto Robot Analysis Total . | . . . . . . Derelict Logs Recovered 2 | . . 2 . . . Drone Launches . | . . . . . . Drone Recoveries . | . . . . . . Exploration | -11 -10 -10 -8 -7 -7 ------------- Run | Yrd Mat Sub Mat Fac Sto Turns Passed 5230 | . 355 2367 774 1681 53 Spaces Moved 2848 | 1 188 1763 343 522 31 Core 148 | . . 86 8 54 . Treads 307 | . . . 40 248 19 Legs 956 | 1 112 328 295 220 . Wheels 1201 | . . 1201 . . . Hover 236 | . 76 148 . . 12 Flight . | . . . . . . Fastest Speed 50 | 120 56 50 100 120 76 Average Speed 136 | 120 94 105 159 242 133 Slowest Speed 600 | 120 120 300 330 600 170 Overloaded Moves . | . . . . . . Propulsion Burnouts . | . . . . . . Robots Hopped . | . . . . . . Cave-ins Triggered . | . . . . . . Exploration Rate (%) 26 | 2 26 80 26 17 9 Regions Visited 5 Branch Regions 2 Pre-discovered Areas . | . . . . . . Known Exits Taken 1 | . . . . 1 . Unknown Exits Taken 4 | 1 1 1 1 . . Scrap Searched 25 | . . 25 . . . Spaces Dug 2 | . . 2 . . . Terrain Destroyed 23 | . . 2 . 21 . Melee . | . . . . . . Projectile 14 | . . 2 . 12 . AOE 9 | . . . . 9 . Terrain Rammed . | . . . . . . Walls Destroyed . | . . . . . . Machines Disabled . | . . . . . . Actions | -11 -10 -10 -8 -7 -7 --------- Run | Yrd Mat Sub Mat Fac Sto Total 3613 | . 329 2019 456 768 41 Wait 202 | . 105 62 7 28 . Move 2844 | . 187 1762 342 522 31 Hop . | . . . . . . Pick Up 32 | . 6 10 3 13 . Fast Attach 60 | . 2 13 20 25 . Attach 19 | . . 3 5 8 3 Detach 17 | . . 3 1 11 2 Swap 27 | . 3 18 1 5 . Drop 42 | . 6 25 1 8 2 Fire 238 | . 18 113 35 69 3 Melee 45 | . . . 15 30 . Ram . | . . . . . . Kick 4 | . 2 . 2 . . Crush 24 | . . . 24 . . Escape Stasis . | . . . . . . Rewire . | . . . . . . Trap 49 | . . . . 49 . Miscellaneous 10 | . . 10 . . . Route ------- -11/Scrapyard -10/Materials (discovered 2 exits: [*Min] / *Sub) -10/Subcaves -8/Materials -7/Factory -7/Storage History --------- Turn | Location | Event 1 | -11/Scrapyard | Discovered new exit (range 0) 1 | -11/Scrapyard | Entered Materials 54 | -10/Materials | Discovered new exit (range 16) 352 | -10/Materials | Discovered new exit (range 3) 356 | -10/Materials | Entered Subcaves 458 | -10/Subcaves | Discovered new exit (range 9) 641 | -10/Subcaves | Build established: Mutant 725 | -10/Subcaves | Learned Materials emergency access door positions 1145 | -10/Subcaves | Core integrity fell below 50% 1228 | -10/Subcaves | Disturbed a concealed Subdweller 1271 | -10/Subcaves | Shifting Twisted Machinery released Sub. Monowheel 1290 | -10/Subcaves | A swath of the cavern ceiling suddenly collapsed 1295 | -10/Subcaves | Shifting Twisted Machinery released Sub. Beam Cannon 1970 | -10/Subcaves | Build established: Derelict-Mutant 2093 | -10/Subcaves | Visited 4L-MR0's lab 2115 | -10/Subcaves | Found Cargo Legs 2117 | -10/Subcaves | Attached Cargo Legs, gained temporary slots: Utility x2 2170 | -10/Subcaves | Lrg. Botcube activated 2178 | -10/Subcaves | Lrg. Botcube completed mutation into wheeled form, armed with 2 guns. 2233 | -10/Subcaves | A swath of the cavern ceiling suddenly collapsed 2543 | -10/Subcaves | Core integrity fell below 20% 2545 | -10/Subcaves | Visited Clippyterm 2575 | -10/Subcaves | Ambushed by Subdweller buried in earth 2606 | -10/Subcaves | Lost 4 parts (1p1u2w) 2723 | -10/Subcaves | Entered Materials 2723 | -8/Materials | Evolved 4 slots: Power x1, Propulsion x1, Utility x1, Weapon x1 3039 | -8/Materials | Core integrity fell below 50% 3091 | -8/Materials | Lost 9 parts (2p2n2u3w) 3156 | -8/Materials | Lost 5 parts (1u4w) 3367 | -8/Materials | Build established: Scavenger-Mutant 3381 | -8/Materials | Discovered new exit (range 12) 3487 | -8/Materials | Core integrity fell below 20% 3497 | -8/Materials | Entered Factory 3497 | -7/Factory | Evolved 2 slots: Utility x1, Weapon x1 3498 | -7/Factory | Identified exit to Storage 3935 | -7/Factory | Build established: Mutant 4072 | -7/Factory | Fabricated Hvy. Siege Treads (x2) 4167 | -7/Factory | Lost 10 parts (4p3n3w) 4596 | -7/Factory | Build established: Gunner 4624 | -7/Factory | Cargo convoy interrupted 4659 | -7/Factory | Core integrity fell below 50% 4726 | -7/Factory | Lost 9 parts (2p2n1u4w) 5129 | -7/Factory | Core integrity fell below 20% 5132 | -7/Factory | Lost 3 parts (1p2w) 5178 | -7/Factory | Entered Storage 5204 | -7/Storage | Lost 3 parts (1n1u1w) 5231 | -7/Storage | Destroyed by S-27 Virus with Autogun Last Messages --------------- GOAL=ESCAPE 05184_ UOZNZSXRDM:SHPXV:WOB DVWY|QYGP 05204_ Connecting with Terminal... >>Alert(Check) Current Alert Level: Low Security 05205_ System corrupted: Heat flow error (+106). 05211_ Connecting with Repair Station... 05211_ Dropped Arm. Treads. 05211_ Connecting with Repair Station... >>Refit Scanning configuration... Attaching: Backup Power I x2 Backup Propulsion I x2 Backup Laser I x1 05213_ Dropped Katana. 05214_ R-06 Scavenger collects Arm. Treads. 05216_ R-06 Scavenger collects Katana. 05216_ Penetrated by Slug. 05225_ Backup Propulsion I destroyed. Map ----- +----------------------------------------------------+ | ????????????????????????????????????????? | | ????????????????????????????????????????? | | ????????????????????????????????????????? | | ????????????????????????????????????????? | | ????????????????????????????????????????? | | ????????????????????????????????????????? | | ????????????????????????????????????????? | | ????????????????????????????????????????? | | ????????????????????????????????????????? | | ????????????????????????????????????????? | | ????????????????????????????????????????? | | ?????? ???????????????????????????????? | | ?????# ???????????????????????????????? | | ?????# ???????????????????????????????? | | ?????# ???????????????????????????????? | | ?????# #?????#####????????????????????? | | ?????# #?????#"""#????????????????????? | | ?????# #???###"T"####?????????????????? | | ?????# #???# #?????????????????? | | ?????# #???# """"" #?????????????????? | | ?????# ##### ""T"" #???#?##??????????? | | ?????# ##""" # ???????? | | ?????# ##"R r h ???????? | | ?????# ##""" sss""" # ???????? | | ?????# ##### """ #?????????????????? | | ?????# #####s @ """ #?????????????????? | | ?????# u #?????????????????? | | ?????# #######"T"####?????????????????? | | ?????# #?????#####????????????????????? | | ?????# #??????????????????????????????? | | ?????# #??????????????????????????????? | | ?????# #??????????????????????????????? | | ?????# #??????????????????????????????? | | ?????# #??????????????????????????????? | | ?????# #??????????????????????????????? | | ?????#####??????????????????????????????? | | ????????????????????????????????????????? | | ????????????????????????????????????????? | | ????????????????????????????????????????? | | ????????????????????????????????????????? | | | | | | | | | | | | | | | | | | | | | +----------------------------------------------------+ Best States ------------- Heat Dissipation 48 Energy Generation 25 Energy Capacity 425 Matter Stores 300 Matter Capacity 300 Sight Range 21 Robot Scan Range 15 Terrain Scan Density 110 Additional Mass Support 12 Armor Coverage 800 Weapon Cycling 15 Evasion (%) 55 Targeting Accuracy 14 Recoil Reduction 4 Offensive Hacking 10 Item Schematics ----------------- Imp. Datajack | -7/Factory | Scanalyzed Adv. Assault Cannon | -7/Factory | Scanalyzed Beam Rifle | -7/Factory | Scanalyzed Robot Schematics ------------------ None Fabricated ------------ Hvy. Siege Treads | x2 | -7/Factory | Preloaded Alien Tech Used ----------------- None Achievements -------------- None Challenges ------------ None Game ------ Seed BattleThiefCharger Manual? 0 Play Time 00:32:18 Cumulative 648.0 hours Start 2024.02.10 @ 16:14:05 End 2024.02.10 @ 16:53:39 Sessions 1 Manual Loads 0 Difficulty Rogue Special Mode None Game No. 637 Rogue 364 Adventurer 123 Explorer 150 Win Type - Total 25 Types 19/0/4/1/0/0/0/1/0 Lore% 80 Gallery% 91 Achievement% 76 Wizard Run 0 Options --------- ASCII 0 Keyboard 1 Movement Numpad Keybinds 0 Fullscreen 2 Font 18/X11Bold Map View 76x50 Zoom Use 1% Tactical HUD 1 Map Filters NONE Filters NONE Steam 1 RUN: 5f33294d-1c40-48b0-88f6-d7f55f1142d6